fUSD/lending_fUSD_20260201
["ID","MTS","AMOUNT","RATE_DAILY","PERIOD"]
[404217622,1769970169472,-609.55,0.00052919,120]
[404217623,1769970169747,-500.0,0.00052985,34]
[404217624,1769970169809,-250.0,0.00052985,34]
[404217625,1769970169871,-151.0,0.00052985,34]
[404217626,1769970169931,-250.0,0.00052985,34]
[404217627,1769970169991,-579.88197956,0.00052985,34]
[404217628,1769970170055,-168.3888056,0.00052985,34]
[404217629,1769970170119,-500.0,0.00052985,34]
[404217630,1769970170177,-275.7230702,0.00052985,34]
[404217631,1769970170236,-168.3888056,0.00052985,34]
[404217632,1769970170297,-151.0,0.00052985,34]
[404217633,1769970170361,-600.0,0.00052985,34]
[404217634,1769970170433,-500.0,0.00052985,34]
[404217635,1769970170491,-250.0,0.00052985,34]
[404217636,1769970170553,-151.0,0.00052985,34]
[404217637,1769970170625,-220.0,0.00052985,34]
[404217638,1769970170691,-500.0,0.00052985,34]
[404217639,1769970170750,-500.0,0.00052985,34]
[404217640,1769970170811,-1148.61238259,0.00052985,34]
[404217641,1769970170871,-250.0,0.00052985,34]
[404217642,1769970170930,-215.0738,0.00052985,34]
[404217643,1769970170994,-500.0,0.00052985,34]
[404217644,1769970171056,-250.0,0.00052985,34]
[404217645,1769970171117,-168.3888056,0.00052985,34]
[404217646,1769970171177,-500.0,0.00052985,34]
[404217647,1769970171236,-557.5788265,0.00052985,34]
[404217648,1769970171296,-160.0,0.00052985,34]
[404217649,1769970171356,-250.0,0.00052985,34]
[404217650,1769970171414,-500.0,0.00052985,34]
[404217651,1769970171473,-691.39774486,0.00052985,34]
[404217652,1769970171533,-500.0,0.00052985,34]
[404217653,1769970171593,-168.3888056,0.00052985,34]
[404217654,1769970171653,-500.0,0.00052999,30]
[404217655,1769970171713,-250.0,0.00052999,30]
[404217656,1769970171772,-250.0,0.00052999,30]
[404217657,1769970171830,-151.0,0.00052999,30]
[404217658,1769970171890,-162.380719,0.00052999,30]
[404217659,1769970171949,-559.19188,0.00052999,30]
[404217660,1769970172013,-500.0,0.00052999,30]
[404217661,1769970172077,-151.0,0.00052999,30]
[404217662,1769970172142,-162.380719,0.00052999,30]
[404217663,1769970172203,-151.0,0.00052999,30]
[404217664,1769970172263,-600.0,0.00052999,30]
[404217665,1769970172321,-500.0,0.00052999,30]
[404217666,1769970172380,-250.0,0.00052999,30]
[404217667,1769970172436,-220.0,0.00052999,30]
[404217668,1769970172494,-151.0,0.00052999,30]
[404217669,1769970172553,-500.0,0.00052999,30]
[404217670,1769970172611,-500.0,0.00052999,30]
[404217671,1769970172669,-1107.63007,0.00052999,30]
[404217672,1769970172726,-207.4,0.00052999,30]
[404217673,1769970172785,-250.0,0.00052999,30]
[404217674,1769970172842,-500.0,0.00052999,30]
[404217675,1769970172899,-250.0,0.00052999,30]
[404217676,1769970172957,-162.380719,0.00052999,30]
[404217677,1769970173016,-152.38963738,0.00052999,30]
[404217678,1769970173082,-500.0,0.00052999,30]
[404217679,1769970173143,-537.6845,0.00052999,30]
[404217680,1769970173205,-160.0,0.00052999,30]
[404217681,1769970173270,-250.0,0.00052999,30]
[404217682,1769970173330,-666.72878,0.00052999,30]
[404217683,1769970173391,-500.0,0.00052999,30]
[404217684,1769970173454,-500.0,0.00052999,30]
[404217685,1769970173513,-162.380719,0.00052999,30]
[404217686,1769970173572,-700.0,0.00053,60]
[404217687,1769970173633,-812.0,0.00053,120]
[404217688,1769970173695,-829.0,0.00053,120]
[404217689,1769970173757,-150.0,0.00053,40]
[404217690,1769970173816,-1000.0,0.00053,120]
[404217691,1769970173874,-812.0,0.00053,120]
[404217692,1769970173934,-239.85,0.00053,120]
[404217693,1769970173992,-159.9,0.00053,120]
[404217694,1769970174050,-200.0,0.00053,60]
[404217695,1769970174110,-277.48557304,0.00053,30]
[404217696,1769970174169,-175.61913933,0.00053,30]
[404217697,1769970174227,-278.97569351,0.00053,30]
[404217698,1769970174283,-159.19856482,0.00053,30]
[404217699,1769970174338,-185.72454995,0.00053,30]
[404217700,1769970174395,-289.05610167,0.00053,30]
[404217701,1769970174450,-255.81705829,0.00053,30]
[404217702,1769970174505,-192.84932603,0.00053,30]
[404217703,1769970174564,-247.54832364,0.00053,30]
[404217704,1769970174626,-184.33048139,0.00053,30]
[404217705,1769970174682,-195.42535132,0.00053,30]
[404217706,1769970174738,-217.37906494,0.00053,30]
[404217707,1769970174796,-152.0,0.000532,120]
[404217708,1769970174853,-154.89725075,0.00053236,30]
[404217709,1769970174910,-500.0,0.00053275,60]
[404217710,1769970174971,-151.0,0.00053275,60]
[404217711,1769970175034,-250.0,0.00053275,60]
[404217712,1769970175093,-250.0,0.00053275,60]
[404217713,1769970175153,-156.587,0.00053275,60]
[404217714,1769970175211,-539.24,0.00053275,60]
[404217715,1769970175270,-500.0,0.00053275,60]
[404217716,1769970175327,-151.0,0.00053275,60]
[404217717,1769970175386,-156.587,0.00053275,60]
[404217718,1769970175612,-151.0,0.00053275,60]
[404217719,1769970175672,-600.0,0.00053275,60]
[404217720,1769970175732,-500.0,0.00053275,60]
[404217721,1769970175792,-250.0,0.00053275,60]
[404217722,1769970175852,-311.1,0.00053275,60]
[404217723,1769970175911,-220.0,0.00053275,60]
[404217724,1769970175970,-151.0,0.00053275,60]
[404217725,1769970176036,-500.0,0.00053275,60]
[404217726,1769970176096,-500.0,0.00053275,60]
[404217727,1769970176155,-200.0,0.00053275,60]
[404217728,1769970176213,-1068.11,0.00053275,60]
[404217729,1769970176273,-250.0,0.00053275,60]
[404217730,1769970176332,-500.0,0.00053275,60]
[404217731,1769970176390,-250.0,0.00053275,60]
[404217732,1769970176447,-156.587,0.00053275,60]
[404217733,1769970176505,-151.0,0.00053275,60]
[404217734,1769970176565,-500.0,0.00053275,60]
[404217735,1769970176624,-518.5,0.00053275,60]
[404217736,1769970176682,-160.0,0.00053275,60]
[404217737,1769970176743,-250.0,0.00053275,60]
[404217738,1769970176801,-500.0,0.00053275,60]
[404217739,1769970176861,-642.94,0.00053275,60]
[404217740,1769970176920,-500.0,0.00053275,60]
[404217741,1769970176981,-500.0,0.00053275,60]
[404217742,1769970177046,-156.587,0.00053275,60]
[404217743,1769970177107,-597.60622857,0.000533,60]
[404217744,1769970177165,-150.0,0.00053302,30]
[404217745,1769970177223,-503.0,0.00053313,34]
[404217746,1769970177282,-609.55,0.00053327,120]
[404217747,1769970177339,-1000.0,0.00053344,30]
[404217748,1769970177398,-1000.0,0.00053424,120]
[404217749,1769970177459,-500.0,0.00053447,120]
[404217750,1769970177518,-1000.0,0.0005346,30]
[404217751,1769970177576,-200.0,0.00053499,120]
[404217752,1769970177641,-563.97806718,0.00053499,120]
[404217753,1769970177699,-500.0,0.00053499,120]
[404217754,1769970177760,-151.0,0.00053499,120]
[404217755,1769970177820,-1871.65312696,0.00053499,120]
[404217756,1769970177881,-151.0,0.00053499,120]
[404217757,1769970177939,-250.0,0.00053499,120]
[404217758,1769970178001,-250.0,0.00053499,120]
[404217759,1769970178062,-520.0,0.00053499,120]
[404217760,1769970178123,-231.38568608,0.00053499,120]
[404217761,1769970178181,-500.0,0.00053499,120]
[404217762,1769970178239,-151.0,0.00053499,120]
[404217763,1769970178294,-151.0,0.00053499,120]
[404217764,1769970178351,-151.0,0.00053499,120]
[404217765,1769970178406,-600.0,0.00053499,120]
[404217766,1769970178462,-500.0,0.00053499,120]
[404217767,1769970178519,-250.0,0.00053499,120]
[404217768,1769970178579,-300.0,0.00053499,120]
[404217769,1769970178636,-220.0,0.00053499,120]
[404217770,1769970178695,-151.0,0.00053499,120]
[404217771,1769970178754,-500.0,0.00053499,120]
[404217772,1769970178812,-500.0,0.00053499,120]
[404217773,1769970178870,-1030.0,0.00053499,120]
[404217774,1769970178928,-250.0,0.00053499,120]
[404217775,1769970178989,-500.0,0.00053499,120]
[404217776,1769970179049,-250.0,0.00053499,120]
[404217777,1769970179110,-151.0,0.00053499,120]
[404217778,1769970179169,-151.0,0.00053499,120]
[404217779,1769970179229,-500.0,0.00053499,120]
[404217780,1769970179288,-500.0,0.00053499,120]
[404217781,1769970179345,-1037.50931435,0.00053499,120]
[404217782,1769970179405,-160.0,0.00053499,120]
[404217783,1769970179463,-250.0,0.00053499,120]
[404217784,1769970179525,-500.0,0.00053499,120]
[404217785,1769970179585,-620.0,0.00053499,120]
[404217786,1769970179647,-500.0,0.00053499,120]
[404217787,1769970179707,-500.0,0.00053499,120]
[404217788,1769970179772,-151.0,0.00053499,120]
[404217789,1769970179841,-50000.0,0.000535,54]
[404217790,1769970179903,-3235605.25640761,0.000535,120]
[404217791,1769970179964,-3983572.40333974,0.000535,120]
[404217792,1769970216039,503.0,0.00019,34]
[404217793,1769970216340,503.0,0.00020052,34]
[404217815,1769970437956,-162.97609342,0.00012857,2]
[404217816,1769970440695,-166.66,0.00012857,2]
[404217817,1769970445814,-473.05956125,0.00012857,2]
[404217818,1769970447400,-500.036556,0.00012857,2]
[404217819,1769970449962,-195.05993889,0.00012857,2]
[404217820,1769970451450,-166.66,0.00012857,2]
[404217853,1769970547091,-156.32785044,0.00012857,2]
[404217854,1769970570037,500.036556,0.0001422,2]
[404217876,1769970631800,-473.0596,0.00014292,2]
[404217877,1769970631809,-526.9404,0.00014309,2]
[404217878,1769970631944,-231.3396,0.00014309,2]
[404217879,1769970631954,-758.28,0.00014309,2]
[404217880,1769970631964,-758.28,0.00014309,2]
[404217881,1769970631972,-607.06348394,0.00014309,2]
[404217889,1769970639950,-151.21651606,0.00014309,2]
[404217890,1769970639959,-758.28,0.00014309,2]
[404217891,1769970639970,-337.21348409,0.00014318,2]
[404217892,1769970640002,-862.78651591,0.00014318,2]
[404217893,1769970640011,-150.0,0.00014318,2]
[404217894,1769970640020,-300.0,0.00014318,2]
[404217895,1769970640031,-2900000.0,0.00014319,2]
[404217896,1769970640040,-542.91976676,0.00014392,2]
[404217897,1769970640050,-347.47744662,0.0001441,2]
[404217898,1769970640059,-11919.91790334,0.0001441,2]
[404217899,1769970640069,-4978.49148047,0.0001441,2]
[404217900,1769970640078,-245.80174832,0.00014418,2]
[404217901,1769970640087,-500.0,0.00014418,2]
[404217902,1769970640096,-296.57606478,0.00014418,2]
[404217903,1769970640108,-582.0872602,0.00014418,2]
[404217904,1769970640118,-390.76152895,0.00014418,2]
[404217905,1769970640127,-150.00282332,0.00014496,2]
[404217906,1769970640136,-500.0,0.0001451,2]
[404217907,1769970640147,-200.0,0.0001451,2]
[404217908,1769970640156,-500.0,0.00014518,2]
[404217909,1769970640166,-500.0,0.00014518,2]
[404217910,1769970640178,-11919.9179033,0.00014798,2]
[404217911,1769970640187,-4978.49148045,0.00014798,2]
[404217912,1769970640196,-3240.0,0.000149,2]
[404217913,1769970640206,-347.47744661,0.00014992,2]
[404217914,1769970640215,-150.9129955,0.00015019,2]
[404217915,1769970640225,-500.0,0.00015058,2]
[404217916,1769970640234,-200.0,0.00015058,2]
[404217917,1769970640244,-11919.9179033,0.00015186,2]
[404217918,1769970640253,-4978.49148045,0.00015186,2]
[404217919,1769970640262,-2020.35,0.000152,2]
[404217920,1769970640272,-915.0,0.00015204,2]
[404217921,1769970640281,-542.91976672,0.00015269,2]
[404217922,1769970640290,-153.08,0.00015333,2]
[404217923,1769970640299,-255.0,0.00015435,2]
[404217924,1769970640308,-151.0,0.00015505,2]
[404217925,1769970640317,-151.0,0.00015505,2]
[404217927,1769970640327,-151.0,0.00015505,2]
[404217928,1769970640335,-151.0,0.00015507,2]
[404217930,1769970640344,-151.0,0.00015507,2]
[404217932,1769970640354,-151.0,0.00015507,2]
[404217934,1769970640363,-347.47744661,0.00015573,2]
[404217935,1769970640372,-11919.9179033,0.00015573,2]
[404217936,1769970640382,-4978.49148045,0.00015573,2]
[404217937,1769970640391,-500.0,0.00015606,2]
[404217938,1769970640401,-200.0,0.00015606,2]
[404217939,1769970640411,-420.0,0.00015681,2]
[404217940,1769970640420,-1680.0,0.0001575,2]
[404217941,1769970640430,-194.90144509,0.00015807,2]
[404217942,1769970640439,-176.43284417,0.00015848,2]
[404217943,1769970640448,-500.0,0.00015865,2]
[404217944,1769970640457,-150.00282332,0.00015865,2]
[404217945,1769970640467,-11919.9179033,0.00015961,2]
[404217946,1769970640476,-4978.49148045,0.00015961,2]
[404217947,1769970640485,-956.68560737,0.00016,2]
[404217949,1769970640498,-186.35,0.00016065,2]
[404217950,1769970640508,-9999.99,0.00016116,2]
[404217951,1769970640519,-29999.99,0.00016116,2]
[404217952,1769970640528,-500.0,0.00016139,2]
[404217953,1769970640540,-4523.78,0.00016141,2]
[404217954,1769970640549,-542.91976672,0.00016146,2]
[404217955,1769970640558,-500.0,0.00016154,2]
[404217956,1769970640567,-200.0,0.00016154,2]
[404217957,1769970640578,-347.47744661,0.00016155,2]
[404217958,1769970640587,-157.67,0.00016186,2]
[404217959,1769970640596,-23888.60204657,0.000162,5]
[404217960,1769970640608,-209.46,0.0001629,2]
[404217961,1769970640619,-11919.9179033,0.00016349,2]
[404217962,1769970640628,-4978.49148045,0.00016349,2]
[404217963,1769970640639,-2834.0,0.000164,2]
[404217964,1769970640649,-500.0,0.00016413,2]
[404217965,1769970640658,-377.75945699,0.00016438,2]
[404217966,1769970640667,-500.0,0.00016438,2]
[404217967,1769970640676,-500.0,0.00016438,2]
[404217968,1769970640685,-500.0,0.00016438,2]
[404217969,1769970640696,-500.0,0.00016438,2]
[404217970,1769970640707,-500.0,0.00016438,2]
[404217971,1769970640717,-500.0,0.00016438,2]
[404217972,1769970640726,-500.0,0.00016438,2]
[404217973,1769970640735,-500.0,0.00016438,2]
[404217974,1769970640746,-500.0,0.00016438,2]
[404217975,1769970640755,-500.0,0.00016438,2]
[404217976,1769970640764,-500.0,0.00016438,2]
[404217977,1769970640773,-500.0,0.00016438,2]
[404217978,1769970640782,-500.0,0.00016438,2]
[404217979,1769970640791,-500.0,0.00016438,2]
[404217980,1769970640800,-500.0,0.00016438,2]
[404217981,1769970640809,-500.0,0.00016438,2]
[404217982,1769970640818,-500.0,0.00016438,2]
[404217983,1769970640827,-500.0,0.00016438,2]
[404217984,1769970640836,-500.0,0.00016438,2]
[404217985,1769970640845,-500.0,0.00016438,2]
[404217986,1769970640854,-500.0,0.00016438,2]
[404217987,1769970640863,-500.0,0.00016438,2]
[404217988,1769970640872,-500.0,0.00016438,2]
[404217989,1769970640881,-500.0,0.00016438,2]
[404217990,1769970640891,-500.0,0.00016438,2]
[404217991,1769970640901,-500.0,0.00016438,2]
[404217992,1769970640910,-500.0,0.00016438,2]
[404217993,1769970640919,-500.0,0.00016438,2]
[404217994,1769970640929,-500.0,0.00016438,2]
[404217995,1769970640938,-500.0,0.00016438,2]
[404217996,1769970640947,-500.0,0.00016438,2]
[404217997,1769970640956,-500.0,0.00016438,2]
[404217998,1769970640965,-500.0,0.00016438,2]
[404217999,1769970640975,-500.0,0.00016438,2]
[404218000,1769970640984,-500.0,0.00016438,2]
[404218001,1769970640994,-500.0,0.00016438,2]
[404218002,1769970641003,-500.0,0.00016438,2]
[404218003,1769970641012,-500.0,0.00016438,2]
[404218004,1769970641022,-396.89494562,0.00016438,2]
[404218005,1769970641033,-500.0,0.00016438,2]
[404218006,1769970641042,-500.0,0.00016438,2]
[404218007,1769970641051,-500.0,0.00016438,2]
[404218008,1769970641060,-500.0,0.00016438,2]
[404218009,1769970641069,-500.0,0.00016438,2]
[404218010,1769970641078,-500.0,0.00016438,2]
[404218011,1769970641087,-500.0,0.00016438,2]
[404218012,1769970641096,-500.0,0.00016438,2]
[404218013,1769970641108,-500.0,0.00016438,2]
[404218014,1769970641117,-500.0,0.00016438,2]
[404218015,1769970641127,-500.0,0.00016438,2]
[404218016,1769970641136,-500.0,0.00016438,2]
[404218017,1769970641148,-250.0,0.00016438,2]
[404218018,1769970641157,-500.0,0.00016438,2]
[404218019,1769970641167,-151.0,0.00016574,2]
[404218020,1769970641177,-500.0,0.00016687,2]
[404218021,1769970641187,-10076.80540011,0.00016697,2]
[404218022,1769970641197,-500.0,0.00016702,2]
[404218023,1769970641206,-217.86379806,0.00016702,2]
[404218024,1769970641216,-159.11024008,0.00016704,2]
[404218025,1769970641226,-2834.0,0.0001672,2]
[404218026,1769970641236,-347.47744661,0.00016737,2]
[404218027,1769970641245,-11919.9179033,0.00016737,2]
[404218028,1769970641254,-4978.49148045,0.00016737,2]
[404218029,1769970641264,-212.12976534,0.00016804,2]
[404218030,1769970641274,-500.0,0.00016961,2]
[404218031,1769970641283,-150.0,0.00016981,2]
[404218032,1769970641293,-1000.0,0.00016986,2]
[404218033,1769970641302,-2158.9797641,0.00017,3]
[404218034,1769970641311,-71358.37467172,0.00017,2]
[404218035,1769970641321,-1000.0,0.00017001,2]
[404218036,1769970641330,-542.91976672,0.00017023,2]
[404218037,1769970641340,-11919.9179033,0.00017124,2]
[404218038,1769970641348,-4978.49148045,0.00017124,2]
[404218039,1769970641358,-150.00282332,0.00017233,2]
[404218040,1769970641367,-500.0,0.0001725,2]
[404218041,1769970641376,-1000.0,0.0001726,2]
[404218042,1769970641385,-347.47744661,0.00017318,2]
[404218043,1769970641397,-2351.0,0.00017325,2]
[404218044,1769970641406,-1079.0,0.00017335,2]
[404218045,1769970641415,-1079.0,0.00017464,2]
[404218046,1769970641424,-1045.68637885,0.000175,2]
[404218047,1769970641433,-11919.9179033,0.00017512,2]
[404218048,1769970641442,-4978.49148045,0.00017512,2]
[404218049,1769970641451,-1999.0,0.00017534,2]
[404218050,1769970641460,-6242.0,0.00017598,2]
[404218051,1769970641470,-2263.0,0.0001768,2]
[404218052,1769970641481,-25000.0,0.00017768,3]
[404218053,1769970641490,-25000.0,0.00017777,3]
[404218054,1769970641499,-25000.0,0.00017786,3]
[404218055,1769970641509,-25000.0,0.00017794,3]
[404218056,1769970641518,-500.0,0.00017798,2]
[404218057,1769970641528,-25000.0,0.00017803,3]
[404218058,1769970641537,-1000.0,0.00017808,2]
[404218059,1769970641546,-1079.0,0.00017811,2]
[404218060,1769970641556,-25000.0,0.00017812,3]
[404218061,1769970641565,-25000.0,0.00017821,3]
[404218062,1769970641576,-25000.0,0.0001783,3]
[404218063,1769970641585,-25000.0,0.00017838,3]
[404218064,1769970641596,-25000.0,0.00017847,3]
[404218065,1769970641606,-25000.0,0.00017856,3]
[404218066,1769970641615,-25000.0,0.00017865,3]
[404218067,1769970641624,-25000.0,0.00017874,3]
[404218068,1769970641634,-25000.0,0.00017882,3]
[404218069,1769970641645,-25000.0,0.00017891,3]
[404218070,1769970641654,-1079.0,0.00017896,2]
[404218071,1769970641663,-25000.0,0.000179,3]
[404218072,1769970641672,-542.91976672,0.000179,2]
[404218073,1769970641682,-347.47744661,0.000179,2]
[404218074,1769970641691,-19056.26274756,0.000179,3]
[404218075,1769970641701,-11919.9179033,0.000179,2]
[404218076,1769970641711,-4978.49148045,0.000179,2]
[404218077,1769970641720,-174.174,0.0001791,2]
[404218078,1769970641730,-1273.033,0.0001791,2]
[404218079,1769970641739,-927.314,0.0001791,2]
[404218080,1769970641749,-1208.946,0.0001791,2]
[404218081,1769970641759,-3252.0,0.0001791,2]
[404218082,1769970641769,-3496.695,0.0001791,2]
[404218083,1769970641779,-1410.0,0.0001791,2]
[404218084,1769970641788,-1079.0,0.00017922,2]
[404218085,1769970641797,-164763.4146852,0.00017941,2]
[404218086,1769970641806,-3129.3626923,0.00017941,2]
[404218087,1769970641815,-3627.4906153,0.00017941,2]
[404218088,1769970641825,-1079.0,0.00017979,2]
[404218089,1769970641834,-31254.36400703,0.0001799,3]
[404218090,1769970641843,-150.0,0.00017999,2]
[404218091,1769970641853,-150.0,0.00017999,2]
[404218092,1769970641863,-150.0,0.00017999,2]
[404218093,1769970641872,-150.0,0.00017999,2]
[404218094,1769970641881,-150.0,0.00017999,2]
[404218095,1769970641891,-281.69935258,0.00017999,2]
[404218096,1769970641904,-300.0,0.00017999,2]
[404218097,1769970641913,-300.0,0.00017999,2]
[404218098,1769970641922,-2803582.40323719,0.00018,2]
[404218099,1769970641931,-119933.23747311,0.00018,2]
[404218100,1769970641940,-128944.3406976,0.00018,2]
[404218104,1769970645834,-151.0,0.00015501,2]
[404218105,1769970645844,-151.0,0.00015501,2]
[404218106,1769970645853,-151.0,0.00015501,2]
[404218107,1769970645862,-189.041252,0.00016046,2]
[404218108,1769970645871,-262.08082349,0.00018,2]
[404218109,1769970646107,-1960.675,0.00018,2]
[404218124,1769971018108,212.59,0.00012187,2]
[404218132,1769971574817,166.66,0.0001283,2]
[404218139,1769971759081,-166.66,0.000131,2]
[404218140,1769971759104,-200.0,0.00013229,2]
[404218141,1769971759125,-250.0,0.00013235,2]
[404218143,1769971759148,-166.66,0.0001337,2]
[404218145,1769971759168,-300.0,0.00013526,2]
[404218147,1769971759192,-1200.0,0.00013526,2]
[404218149,1769971759214,-590.9266412,0.00013526,2]
[404218151,1769971759234,-1435.3565728,0.00013527,2]
[404218164,1769971831918,-1530.12839267,0.000135,2]
[404218165,1769971831929,-922.60553871,0.00013526,2]
[404218166,1769971831943,-277.39446129,0.00013526,2]
[404218167,1769971831953,-261.0,0.00013526,2]
[404218168,1769971831962,-175.02831781,0.00013527,2]
[404218169,1769971831974,-1151.18960832,0.00013527,2]
[404218170,1769971831991,-1575.21859507,0.00013527,2]
[404218171,1769971832002,-14811.246906,0.00013527,2]
[404218172,1769971832011,-150.01147912,0.00013527,2]
[404218173,1769971832020,-166.66,0.00013641,2]
[404218174,1769971832031,-4065.11451274,0.00013835,2]
[404218175,1769971832040,-166.66,0.00013911,2]
[404218176,1769971832050,-168.669,0.00013935,2]
[404218177,1769971832060,-519.606,0.00013935,2]
[404218178,1769971832070,-166.66,0.00014181,2]
[404218179,1769971832079,-150.0,0.00014192,2]
[404218180,1769971832088,-542.91976676,0.00014196,2]
[404218181,1769971832097,-347.47744662,0.00014196,2]
[404218182,1769971832107,-226.33668028,0.00014209,2]
[404218183,1769971832117,-150.0,0.0001421,2]
[404218184,1769971832127,-151.0,0.00014211,2]
[404218185,1769971832136,-151.0,0.00014211,2]
[404218186,1769971832146,-151.0,0.00014211,2]
[404218187,1769971832155,-151.0,0.00014211,2]
[404218188,1769971832166,-151.0,0.00014211,2]
[404218189,1769971832176,-151.0,0.00014211,2]
[404218190,1769971832186,-151.0,0.00014211,2]
[404218192,1769971832195,-151.0,0.00014211,2]
[404218193,1769971832203,-151.0,0.00014211,2]
[404218195,1769971832214,-500.0,0.00014211,2]
[404218197,1769971832223,-151.0,0.00014211,2]
[404218199,1769971832232,-500.0,0.00014211,2]
[404218201,1769971832242,-151.0,0.00014211,2]
[404218203,1769971832252,-200.0,0.00014211,2]
[404218204,1769971832261,-500.0,0.00014211,2]
[404218205,1769971832271,-500.0,0.00014211,2]
[404218206,1769971832280,-500.0,0.00014211,2]
[404218207,1769971832289,-500.0,0.00014211,2]
[404218208,1769971832299,-500.0,0.00014211,2]
[404218209,1769971832308,-500.0,0.00014211,2]
[404218210,1769971832317,-500.0,0.00014211,2]
[404218211,1769971832326,-500.0,0.00014211,2]
[404218212,1769971832335,-500.0,0.00014211,2]
[404218213,1769971832345,-500.0,0.00014211,2]
[404218214,1769971832354,-500.0,0.00014211,2]
[404218215,1769971832364,-500.0,0.00014211,2]
[404218216,1769971832373,-500.0,0.00014211,2]
[404218217,1769971832382,-500.0,0.00014211,2]
[404218218,1769971832392,-500.0,0.00014211,2]
[404218219,1769971832401,-500.0,0.00014211,2]
[404218220,1769971832410,-500.0,0.00014211,2]
[404218221,1769971832420,-500.0,0.00014211,2]
[404218222,1769971832429,-500.0,0.00014211,2]
[404218223,1769971832439,-500.0,0.00014211,2]
[404218224,1769971832448,-200.0,0.00014211,2]
[404218225,1769971832457,-500.0,0.00014211,2]
[404218226,1769971832467,-6525.0185612,0.00014211,2]
[404218227,1769971832476,-151.0,0.00014216,2]
[404218228,1769971832490,-151.0,0.00014216,2]
[404218229,1769971832499,-278.36328388,0.00014216,2]
[404218230,1769971832508,-500.0,0.00014218,2]
[404218231,1769971832518,-500.0,0.00014218,2]
[404218232,1769971832527,-419.12847376,0.00014218,2]
[404218233,1769971832536,-1000.0,0.00014218,2]
[404218234,1769971832546,-500.0,0.00014218,2]
[404218235,1769971832555,-1681.0,0.00014296,2]
[404218236,1769971832566,-318.82234703,0.00014318,2]
[404218237,1769971832576,-176.43284417,0.00014362,2]
[404218238,1769971832585,-250.0,0.0001441,2]
[404218239,1769971832594,-250.0,0.0001441,2]
[404218240,1769971832603,-939.68,0.00014415,2]
[404218241,1769971832612,-1756.0,0.0001443,2]
[404218242,1769971832622,-1748.0,0.00014459,2]
[404218243,1769971832631,-2510.95,0.00014467,2]
[404218244,1769971832640,-1630.0,0.00014487,2]
[404218245,1769971832651,-500.0,0.00014492,2]
[404218246,1769971832660,-1294.06,0.00014504,2]
[404218247,1769971832669,-9999.99,0.00014504,2]
[404218248,1769971832679,-14710.49356844,0.00014504,2]
[404218249,1769971832691,-425.20182309,0.00014504,2]
[404218250,1769971832703,-4046.31454471,0.00014504,2]
[404218251,1769971832717,-500.0,0.00014504,2]
[404218252,1769971832728,-1470.07670614,0.00014504,2]
[404218253,1769971832739,-7077.16556631,0.00014504,2]
[404218254,1769971832751,-1770.73779131,0.00014504,2]
[404218255,1769971832760,-56.18385657,0.00014516,2]
[404218256,1769971832772,-287.06431718,0.00014516,2]
[404218257,1769971832783,-707.81400876,0.00014516,2]
[404218258,1769971832793,-847.40869389,0.00014621,2]
[404218259,1769971832804,-784.54454562,0.00014621,2]
[404218260,1769971832819,-4893.06532165,0.00014621,2]